{"text_format":"1","workbook":"xlsx","n_sheets":4,"sheets":["normal","Sheet2","Sheet3","Sheet4"],"not_rendered":{"charts":1,"images":3,"macros":1,"external_links":0,"defined_names":12,"comments":1,"pivot_tables":0},"unopened":[],"bounds":{"document_bytes":16777216,"sheet_cells":100000,"rows_first":2000,"rows_last":500,"rows_between":2000,"halvings":0,"cell_chars":16384,"cell_head_chars":4096},"cells_cut":0,"cells_raw":0,"read":"whole","date_system":"1900"}

{"sheet":"normal","index":0,"n_rows":153,"n_cols":24,"rows_kept":153,"cut":false,"hidden":false,"merged":[]}
[null,null,"        The Normal Distribution"]
[]
[null,null,"       This program lets you investigate the"]
[null,null," properties of the normal distribution function"]
[null,null,"based on a mean : and a standard deviation F"]
[]
[]
[]
[]
[]
[]
[null,null,"What is the mean : (0-100)?",null,61,62]
[]
[null,null,"What is the standard "]
[null,null,null,"          deviation F (2-20)?",10]
[]
[]
[]
[null,null,null,null,null,null," "]
[]
[]
[null,"Click each item below for suggestions and investigations"]
[null,null,null,"   Item 1"]
[null,null,null,"   Item 2"]
[null,null,null,"   Item 3"]
[]
[]
[]
[]
["Created by:  Sheldon P. Gordon"]
["                     Farmingdale StateCollege"]
["Development of this module was supported by the ",null,null,null,null,null,null," "]
["NSF's Division of Undergraduate Education  "]
["under grants DUE-0310123 and DUE-0442160."]
[]
[]
[]
[]
[]
[]
[]
[]
[]
[]
[]
[]
[]
[]
[]
[]
[]
[]
[]
[]
[]
[]
[]
[]
[null,null,null,null,null,null,null,null,null,null,null,null,null,null,null,null,null,null,null,null,null,null,null,{"$f":"IF(Sheet2!A57<=flips,Sheet2!A57,\"\")","v":""}]
[null,null,null,null,null,null,null,null,null,null,null,null,null,null,null,null,null,null,null,null,null,null,null,{"$f":"IF(Sheet2!A58<=flips,Sheet2!A58,\"\")","v":""}]
[null,null,null,null,null,null,null,null,null,null,null,null,null,null,null,null,null,null,null,null,null,null,null,{"$f":"IF(Sheet2!A59<=flips,Sheet2!A59,\"\")","v":""}]
[null,null,null,null,null,null,null,null,null,null,null,null,null,null,null,null,null,null,null,null,null,null,null,{"$f":"IF(Sheet2!A60<=flips,Sheet2!A60,\"\")","v":""}]
[null,null,null,null,null,null,null,null,null,null,null,null,null,null,null,null,null,null,null,null,null,null,null,{"$f":"IF(Sheet2!A61<=flips,Sheet2!A61,\"\")","v":""}]
[null,null,null,null,null,null,null,null,null,null,null,null,null,null,null,null,null,null,null,null,null,null,null,{"$f":"IF(Sheet2!A62<=flips,Sheet2!A62,\"\")","v":""}]
[null,null,null,null,null,null,null,null,null,null,null,null,null,null,null,null,null,null,null,null,null,null,null,{"$f":"IF(Sheet2!A63<=flips,Sheet2!A63,\"\")","v":""}]
[null,null,null,null,null,null,null,null,null,null,null,null,null,null,null,null,null,null,null,null,null,null,null,{"$f":"IF(Sheet2!A64<=flips,Sheet2!A64,\"\")","v":""}]
[null,null,null,null,null,null,null,null,null,null,null,null,null,null,null,null,null,null,null,null,null,null,null,{"$f":"IF(Sheet2!A65<=flips,Sheet2!A65,\"\")","v":""}]
[null,null,null,null,null,null,null,null,null,null,null,null,null,null,null,null,null,null,null,null,null,null,null,{"$f":"IF(Sheet2!A66<=flips,Sheet2!A66,\"\")","v":""}]
[null,null,null,null,null,null,null,null,null,null,null,null,null,null,null,null,null,null,null,null,null,null,null,{"$f":"IF(Sheet2!A67<=flips,Sheet2!A67,\"\")","v":""}]
[null,null,null,null,null,null,null,null,null,null,null,null,null,null,null,null,null,null,null,null,null,null,null,{"$f":"IF(Sheet2!A68<=flips,Sheet2!A68,\"\")","v":""}]
[null,null,null,null,null,null,null,null,null,null,null,null,null,null,null,null,null,null,null,null,null,null,null,{"$f":"IF(Sheet2!A69<=flips,Sheet2!A69,\"\")","v":""}]
[null,null,null,null,null,null,null,null,null,null,null,null,null,null,null,null,null,null,null,null,null,null,null,{"$f":"IF(Sheet2!A70<=flips,Sheet2!A70,\"\")","v":""}]
[null,null,null,null,null,null,null,null,null,null,null,null,null,null,null,null,null,null,null,null,null,null,null,{"$f":"IF(Sheet2!A71<=flips,Sheet2!A71,\"\")","v":""}]
[null,null,null,null,null,null,null,null,null,null,null,null,null,null,null,null,null,null,null,null,null,null,null,{"$f":"IF(Sheet2!A72<=flips,Sheet2!A72,\"\")","v":""}]
[null,null,null,null,null,null,null,null,null,null,null,null,null,null,null,null,null,null,null,null,null,null,null,{"$f":"IF(Sheet2!A73<=flips,Sheet2!A73,\"\")","v":""}]
[null,null,null,null,null,null,null,null,null,null,null,null,null,null,null,null,null,null,null,null,null,null,null,{"$f":"IF(Sheet2!A74<=flips,Sheet2!A74,\"\")","v":""}]
[null,null,null,null,null,null,null,null,null,null,null,null,null,null,null,null,null,null,null,null,null,null,null,{"$f":"IF(Sheet2!A75<=flips,Sheet2!A75,\"\")","v":""}]
[null,null,null,null,null,null,null,null,null,null,null,null,null,null,null,null,null,null,null,null,null,null,null,{"$f":"IF(Sheet2!A76<=flips,Sheet2!A76,\"\")","v":""}]
[null,null,null,null,null,null,null,null,null,null,null,null,null,null,null,null,null,null,null,null,null,null,null,{"$f":"IF(Sheet2!A77<=flips,Sheet2!A77,\"\")","v":""}]
[null,null,null,null,null,null,null,null,null,null,null,null,null,null,null,null,null,null,null,null,null,null,null,{"$f":"IF(Sheet2!A78<=flips,Sheet2!A78,\"\")","v":""}]
[null,null,null,null,null,null,null,null,null,null,null,null,null,null,null,null,null,null,null,null,null,null,null,{"$f":"IF(Sheet2!A79<=flips,Sheet2!A79,\"\")","v":""}]
[null,null,null,null,null,null,null,null,null,null,null,null,null,null,null,null,null,null,null,null,null,null,null,{"$f":"IF(Sheet2!A80<=flips,Sheet2!A80,\"\")","v":""}]
[null,null,null,null,null,null,null,null,null,null,null,null,null,null,null,null,null,null,null,null,null,null,null,{"$f":"IF(Sheet2!A81<=flips,Sheet2!A81,\"\")","v":""}]
[null,null,null,null,null,null,null,null,null,null,null,null,null,null,null,null,null,null,null,null,null,null,null,{"$f":"IF(Sheet2!A82<=flips,Sheet2!A82,\"\")","v":""}]
[null,null,null,null,null,null,null,null,null,null,null,null,null,null,null,null,null,null,null,null,null,null,null,{"$f":"IF(Sheet2!A83<=flips,Sheet2!A83,\"\")","v":""}]
[null,null,null,null,null,null,null,null,null,null,null,null,null,null,null,null,null,null,null,null,null,null,null,{"$f":"IF(Sheet2!A84<=flips,Sheet2!A84,\"\")","v":""}]
[null,null,null,null,null,null,null,null,null,null,null,null,null,null,null,null,null,null,null,null,null,null,null,{"$f":"IF(Sheet2!A85<=flips,Sheet2!A85,\"\")","v":""}]
[null,null,null,null,null,null,null,null,null,null,null,null,null,null,null,null,null,null,null,null,null,null,null,{"$f":"IF(Sheet2!A86<=flips,Sheet2!A86,\"\")","v":""}]
[null,null,null,null,null,null,null,null,null,null,null,null,null,null,null,null,null,null,null,null,null,null,null,{"$f":"IF(Sheet2!A87<=flips,Sheet2!A87,\"\")","v":""}]
[null,null,null,null,null,null,null,null,null,null,null,null,null,null,null,null,null,null,null,null,null,null,null,{"$f":"IF(Sheet2!A88<=flips,Sheet2!A88,\"\")","v":""}]
[null,null,null,null,null,null,null,null,null,null,null,null,null,null,null,null,null,null,null,null,null,null,null,{"$f":"IF(Sheet2!A89<=flips,Sheet2!A89,\"\")","v":""}]
[null,null,null,null,null,null,null,null,null,null,null,null,null,null,null,null,null,null,null,null,null,null,null,{"$f":"IF(Sheet2!A90<=flips,Sheet2!A90,\"\")","v":""}]
[null,null,null,null,null,null,null,null,null,null,null,null,null,null,null,null,null,null,null,null,null,null,null,{"$f":"IF(Sheet2!A91<=flips,Sheet2!A91,\"\")","v":""}]
[null,null,null,null,null,null,null,null,null,null,null,null,null,null,null,null,null,null,null,null,null,null,null,{"$f":"IF(Sheet2!A92<=flips,Sheet2!A92,\"\")","v":""}]
[null,null,null,null,null,null,null,null,null,null,null,null,null,null,null,null,null,null,null,null,null,null,null,{"$f":"IF(Sheet2!A93<=flips,Sheet2!A93,\"\")","v":""}]
[null,null,null,null,null,null,null,null,null,null,null,null,null,null,null,null,null,null,null,null,null,null,null,{"$f":"IF(Sheet2!A94<=flips,Sheet2!A94,\"\")","v":""}]
[null,null,null,null,null,null,null,null,null,null,null,null,null,null,null,null,null,null,null,null,null,null,null,{"$f":"IF(Sheet2!A95<=flips,Sheet2!A95,\"\")","v":""}]
[null,null,null,null,null,null,null,null,null,null,null,null,null,null,null,null,null,null,null,null,null,null,null,{"$f":"IF(Sheet2!A96<=flips,Sheet2!A96,\"\")","v":""}]
[null,null,null,null,null,null,null,null,null,null,null,null,null,null,null,null,null,null,null,null,null,null,null,{"$f":"IF(Sheet2!A97<=flips,Sheet2!A97,\"\")","v":""}]
[null,null,null,null,null,null,null,null,null,null,null,null,null,null,null,null,null,null,null,null,null,null,null,{"$f":"IF(Sheet2!A98<=flips,Sheet2!A98,\"\")","v":""}]
[null,null,null,null,null,null,null,null,null,null,null,null,null,null,null,null,null,null,null,null,null,null,null,{"$f":"IF(Sheet2!A99<=flips,Sheet2!A99,\"\")","v":""}]
[null,null,null,null,null,null,null,null,null,null,null,null,null,null,null,null,null,null,null,null,null,null,null,{"$f":"IF(Sheet2!A100<=flips,Sheet2!A100,\"\")","v":""}]
[null,null,null,null,null,null,null,null,null,null,null,null,null,null,null,null,null,null,null,null,null,null,null,{"$f":"IF(Sheet2!A101<=flips,Sheet2!A101,\"\")","v":""}]
[null,null,null,null,null,null,null,null,null,null,null,null,null,null,null,null,null,null,null,null,null,null,null,{"$f":"IF(Sheet2!A102<=flips,Sheet2!A102,\"\")","v":""}]
[null,null,null,null,null,null,null,null,null,null,null,null,null,null,null,null,null,null,null,null,null,null,null,{"$f":"IF(Sheet2!A103<=flips,Sheet2!A103,\"\")","v":""}]
[null,null,null,null,null,null,null,null,null,null,null,null,null,null,null,null,null,null,null,null,null,null,null,{"$f":"IF(Sheet2!A104<=flips,Sheet2!A104,\"\")","v":""}]
[null,null,null,null,null,null,null,null,null,null,null,null,null,null,null,null,null,null,null,null,null,null,null,{"$f":"IF(Sheet2!A105<=flips,Sheet2!A105,\"\")","v":""}]
[null,null,null,null,null,null,null,null,null,null,null,null,null,null,null,null,null,null,null,null,null,null,null,{"$f":"IF(Sheet2!A106<=flips,Sheet2!A106,\"\")","v":""}]
[null,null,null,null,null,null,null,null,null,null,null,null,null,null,null,null,null,null,null,null,null,null,null,{"$f":"IF(Sheet2!A107<=flips,Sheet2!A107,\"\")","v":""}]
[null,null,null,null,null,null,null,null,null,null,null,null,null,null,null,null,null,null,null,null,null,null,null,{"$f":"IF(Sheet2!A108<=flips,Sheet2!A108,\"\")","v":""}]
[null,null,null,null,null,null,null,null,null,null,null,null,null,null,null,null,null,null,null,null,null,null,null,{"$f":"IF(Sheet2!A109<=flips,Sheet2!A109,\"\")","v":""}]
[null,null,null,null,null,null,null,null,null,null,null,null,null,null,null,null,null,null,null,null,null,null,null,{"$f":"IF(Sheet2!A110<=flips,Sheet2!A110,\"\")","v":""}]
[null,null,null,null,null,null,null,null,null,null,null,null,null,null,null,null,null,null,null,null,null,null,null,{"$f":"IF(Sheet2!A111<=flips,Sheet2!A111,\"\")","v":""}]
[null,null,null,null,null,null,null,null,null,null,null,null,null,null,null,null,null,null,null,null,null,null,null,{"$f":"IF(Sheet2!A112<=flips,Sheet2!A112,\"\")","v":""}]
[null,null,null,null,null,null,null,null,null,null,null,null,null,null,null,null,null,null,null,null,null,null,null,{"$f":"IF(Sheet2!A113<=flips,Sheet2!A113,\"\")","v":""}]
[null,null,null,null,null,null,null,null,null,null,null,null,null,null,null,null,null,null,null,null,null,null,null,{"$f":"IF(Sheet2!A114<=flips,Sheet2!A114,\"\")","v":""}]
[null,null,null,null,null,null,null,null,null,null,null,null,null,null,null,null,null,null,null,null,null,null,null,{"$f":"IF(Sheet2!A115<=flips,Sheet2!A115,\"\")","v":""}]
[null,null,null,null,null,null,null,null,null,null,null,null,null,null,null,null,null,null,null,null,null,null,null,{"$f":"IF(Sheet2!A116<=flips,Sheet2!A116,\"\")","v":""}]
[null,null,null,null,null,null,null,null,null,null,null,null,null,null,null,null,null,null,null,null,null,null,null,{"$f":"IF(Sheet2!A117<=flips,Sheet2!A117,\"\")","v":""}]
[null,null,null,null,null,null,null,null,null,null,null,null,null,null,null,null,null,null,null,null,null,null,null,{"$f":"IF(Sheet2!A118<=flips,Sheet2!A118,\"\")","v":""}]
[null,null,null,null,null,null,null,null,null,null,null,null,null,null,null,null,null,null,null,null,null,null,null,{"$f":"IF(Sheet2!A119<=flips,Sheet2!A119,\"\")","v":""}]
[null,null,null,null,null,null,null,null,null,null,null,null,null,null,null,null,null,null,null,null,null,null,null,{"$f":"IF(Sheet2!A120<=flips,Sheet2!A120,\"\")","v":""}]
[null,null,null,null,null,null,null,null,null,null,null,null,null,null,null,null,null,null,null,null,null,null,null,{"$f":"IF(Sheet2!A121<=flips,Sheet2!A121,\"\")","v":""}]
[null,null,null,null,null,null,null,null,null,null,null,null,null,null,null,null,null,null,null,null,null,null,null,{"$f":"IF(Sheet2!A122<=flips,Sheet2!A122,\"\")","v":""}]
[null,null,null,null,null,null,null,null,null,null,null,null,null,null,null,null,null,null,null,null,null,null,null,{"$f":"IF(Sheet2!A123<=flips,Sheet2!A123,\"\")","v":""}]
[null,null,null,null,null,null,null,null,null,null,null,null,null,null,null,null,null,null,null,null,null,null,null,{"$f":"IF(Sheet2!A124<=flips,Sheet2!A124,\"\")","v":""}]
[null,null,null,null,null,null,null,null,null,null,null,null,null,null,null,null,null,null,null,null,null,null,null,{"$f":"IF(Sheet2!A125<=flips,Sheet2!A125,\"\")","v":""}]
[null,null,null,null,null,null,null,null,null,null,null,null,null,null,null,null,null,null,null,null,null,null,null,{"$f":"IF(Sheet2!A126<=flips,Sheet2!A126,\"\")","v":""}]
[null,null,null,null,null,null,null,null,null,null,null,null,null,null,null,null,null,null,null,null,null,null,null,{"$f":"IF(Sheet2!A127<=flips,Sheet2!A127,\"\")","v":""}]
[null,null,null,null,null,null,null,null,null,null,null,null,null,null,null,null,null,null,null,null,null,null,null,{"$f":"IF(Sheet2!A128<=flips,Sheet2!A128,\"\")","v":""}]
[null,null,null,null,null,null,null,null,null,null,null,null,null,null,null,null,null,null,null,null,null,null,null,{"$f":"IF(Sheet2!A129<=flips,Sheet2!A129,\"\")","v":""}]
[null,null,null,null,null,null,null,null,null,null,null,null,null,null,null,null,null,null,null,null,null,null,null,{"$f":"IF(Sheet2!A130<=flips,Sheet2!A130,\"\")","v":""}]
[null,null,null,null,null,null,null,null,null,null,null,null,null,null,null,null,null,null,null,null,null,null,null,{"$f":"IF(Sheet2!A131<=flips,Sheet2!A131,\"\")","v":""}]
[null,null,null,null,null,null,null,null,null,null,null,null,null,null,null,null,null,null,null,null,null,null,null,{"$f":"IF(Sheet2!A132<=flips,Sheet2!A132,\"\")","v":""}]
[null,null,null,null,null,null,null,null,null,null,null,null,null,null,null,null,null,null,null,null,null,null,null,{"$f":"IF(Sheet2!A133<=flips,Sheet2!A133,\"\")","v":""}]
[null,null,null,null,null,null,null,null,null,null,null,null,null,null,null,null,null,null,null,null,null,null,null,{"$f":"IF(Sheet2!A134<=flips,Sheet2!A134,\"\")","v":""}]
[null,null,null,null,null,null,null,null,null,null,null,null,null,null,null,null,null,null,null,null,null,null,null,{"$f":"IF(Sheet2!A135<=flips,Sheet2!A135,\"\")","v":""}]
[null,null,null,null,null,null,null,null,null,null,null,null,null,null,null,null,null,null,null,null,null,null,null,{"$f":"IF(Sheet2!A136<=flips,Sheet2!A136,\"\")","v":""}]
[null,null,null,null,null,null,null,null,null,null,null,null,null,null,null,null,null,null,null,null,null,null,null,{"$f":"IF(Sheet2!A137<=flips,Sheet2!A137,\"\")","v":""}]
[null,null,null,null,null,null,null,null,null,null,null,null,null,null,null,null,null,null,null,null,null,null,null,{"$f":"IF(Sheet2!A138<=flips,Sheet2!A138,\"\")","v":""}]
[null,null,null,null,null,null,null,null,null,null,null,null,null,null,null,null,null,null,null,null,null,null,null,{"$f":"IF(Sheet2!A139<=flips,Sheet2!A139,\"\")","v":""}]
[null,null,null,null,null,null,null,null,null,null,null,null,null,null,null,null,null,null,null,null,null,null,null,{"$f":"IF(Sheet2!A140<=flips,Sheet2!A140,\"\")","v":""}]
[null,null,null,null,null,null,null,null,null,null,null,null,null,null,null,null,null,null,null,null,null,null,null,{"$f":"IF(Sheet2!A141<=flips,Sheet2!A141,\"\")","v":""}]
[null,null,null,null,null,null,null,null,null,null,null,null,null,null,null,null,null,null,null,null,null,null,null,{"$f":"IF(Sheet2!A142<=flips,Sheet2!A142,\"\")","v":""}]
[null,null,null,null,null,null,null,null,null,null,null,null,null,null,null,null,null,null,null,null,null,null,null,{"$f":"IF(Sheet2!A143<=flips,Sheet2!A143,\"\")","v":""}]
[null,null,null,null,null,null,null,null,null,null,null,null,null,null,null,null,null,null,null,null,null,null,null,{"$f":"IF(Sheet2!A144<=flips,Sheet2!A144,\"\")","v":""}]
[null,null,null,null,null,null,null,null,null,null,null,null,null,null,null,null,null,null,null,null,null,null,null,{"$f":"IF(Sheet2!A145<=flips,Sheet2!A145,\"\")","v":""}]
[null,null,null,null,null,null,null,null,null,null,null,null,null,null,null,null,null,null,null,null,null,null,null,{"$f":"IF(Sheet2!A146<=flips,Sheet2!A146,\"\")","v":""}]
[null,null,null,null,null,null,null,null,null,null,null,null,null,null,null,null,null,null,null,null,null,null,null,{"$f":"IF(Sheet2!A147<=flips,Sheet2!A147,\"\")","v":""}]
[null,null,null,null,null,null,null,null,null,null,null,null,null,null,null,null,null,null,null,null,null,null,null,{"$f":"IF(Sheet2!A148<=flips,Sheet2!A148,\"\")","v":""}]
[null,null,null,null,null,null,null,null,null,null,null,null,null,null,null,null,null,null,null,null,null,null,null,{"$f":"IF(Sheet2!A149<=flips,Sheet2!A149,\"\")","v":""}]
[null,null,null,null,null,null,null,null,null,null,null,null,null,null,null,null,null,null,null,null,null,null,null,{"$f":"IF(Sheet2!A150<=flips,Sheet2!A150,\"\")","v":""}]
[null,null,null,null,null,null,null,null,null,null,null,null,null,null,null,null,null,null,null,null,null,null,null,{"$f":"IF(Sheet2!A151<=flips,Sheet2!A151,\"\")","v":""}]

{"sheet":"Sheet2","index":1,"n_rows":151,"n_cols":2,"rows_kept":151,"cut":false,"hidden":false,"merged":[]}
[-25,{"$f":"1/s/SQRT(2*3.14159)*EXP((-1)*(A1-m)^2/2/s^2)","v":3.4729642153102069E-18}]
[-24,8.1662390805338129E-18]
[-23,1.9010823407959125E-17]
[-22,4.3816412860167809E-17]
[-21,9.9983829711344739E-17]
[-20,2.2588103571222479E-16]
[-19,5.0522732172736549E-16]
[-18,1.1187960939386019E-15]
[-17,2.4528563216161934E-15]
[-16,5.324150620812258E-15]
[-15,1.1441569733942647E-14]
[-14,2.4343215611209564E-14]
[-13,5.1277558024121569E-14]
[-12,1.0693842387893717E-13]
[-11,2.2079908956423985E-13]
[-10,4.5135455834203493E-13]
[-9,9.134724266251162E-13]
[-8,1.8303329900238101E-12]
[-7,3.6309630352637478E-12]
[-6,7.1313311357855724E-12]
[-5,1.386680579804925E-11]
[-4,2.6695577422025705E-11]
[-3,5.088142430530537E-11]
[-2,9.6014374253068158E-11]
[-1,1.7937846655367904E-10]
[0,3.3178856447966453E-10]
[1,6.0758854158642579E-10]
[2,1.1015768276993998E-9]
[3,1.9773204757102215E-9]
[4,3.5139565788768205E-9]
[5,6.1826231112855647E-9]
[6,1.0769764590959731E-8]
[7,{"$f":"1/s/SQRT(2*3.14159)*EXP((-1)*(A33-m)^2/2/s^2)","v":1.8573626289790073E-8}]
[8,3.1713505560788678E-8]
[9,5.3610376088354757E-8]
[10,8.9724389517316053E-8]
[11,1.4867201426238216E-7]
[12,2.4389617759450147E-7]
[13,3.9613007640162364E-7]
[14,6.3698278690493847E-7]
[15,1.0140856348295105E-6]
[16,1.5983747857354024E-6]
[17,2.4942481824062356E-6]
[18,3.8535213016741558E-6]
[19,5.8943092650095347E-6]
[20,8.9261694875204985E-6]
[21,1.3383028228569907E-5]
[22,1.9865555529137486E-5]
[23,2.9194704909004779E-5]
[24,4.2478044994913803E-5]
[25,6.1190218853966039E-5]
[26,8.7268306360776271E-5]
[27,1.2322196888788512E-4]
[28,1.7225696665500097E-4]
[29,2.384089208342058E-4]
[30,3.2668204358828013E-4]
[31,4.431850283650298E-4]
[32,5.9525349337219674E-4]
[33,7.9154549259300463E-4]
[34,1.0420939215518923E-3]
[35,1.3582974970210901E-3]
[36,1.7528307896334252E-3]
[37,2.239453975277415E-3]
[38,2.8327049705021349E-3]
[39,{"$f":"1/s/SQRT(2*3.14159)*EXP((-1)*(A65-m)^2/2/s^2)","v":3.5474607828294286E-3}]
[40,4.3983614556116057E-3]
[41,5.399098931531174E-3]
[42,6.5615842486348016E-3]
[43,7.8950191644088213E-3]
[44,9.4049117096840704E-3]
[45,1.1092088152489573E-2]
[46,1.2951765036534288E-2]
[47,1.4972752887047486E-2]
[48,1.7136866442228189E-2]
[49,1.941861369942368E-2]
[50,2.1785226903853979E-2]
[51,2.4197082671117184E-2]
[52,2.6608536227512386E-2]
[53,2.8969167510755362E-2]
[54,3.1225406524165195E-2]
[55,3.3322474362327936E-2]
[56,3.5206547545282359E-2]
[57,3.6827029583566193E-2]
[58,3.8138797653287933E-2]
[59,3.9104285912537722E-2]
[60,3.9695271512285454E-2]
[61,3.9894244888760373E-2]
[62,3.9695271512285454E-2]
[63,3.9104285912537722E-2]
[64,3.8138797653287933E-2]
[65,3.6827029583566193E-2]
[66,3.5206547545282359E-2]
[67,3.3322474362327936E-2]
[68,3.1225406524165195E-2]
[69,2.8969167510755362E-2]
[70,2.6608536227512386E-2]
[71,{"$f":"1/s/SQRT(2*3.14159)*EXP((-1)*(A97-m)^2/2/s^2)","v":2.4197082671117184E-2}]
[72,2.1785226903853979E-2]
[73,1.941861369942368E-2]
[74,1.7136866442228189E-2]
[75,1.4972752887047486E-2]
[76,1.2951765036534288E-2]
[77,1.1092088152489573E-2]
[78,9.4049117096840704E-3]
[79,7.8950191644088213E-3]
[80,6.5615842486348016E-3]
[81,5.399098931531174E-3]
[82,4.3983614556116057E-3]
[83,3.5474607828294286E-3]
[84,2.8327049705021349E-3]
[85,2.239453975277415E-3]
[86,1.7528307896334252E-3]
[87,1.3582974970210901E-3]
[88,1.0420939215518923E-3]
[89,7.9154549259300463E-4]
[90,5.9525349337219674E-4]
[91,4.431850283650298E-4]
[92,3.2668204358828013E-4]
[93,2.384089208342058E-4]
[94,1.7225696665500097E-4]
[95,1.2322196888788512E-4]
[96,8.7268306360776271E-5]
[97,6.1190218853966039E-5]
[98,4.2478044994913803E-5]
[99,2.9194704909004779E-5]
[100,1.9865555529137486E-5]
[101,1.3383028228569907E-5]
[102,8.9261694875204985E-6]
[103,{"$f":"1/s/SQRT(2*3.14159)*EXP((-1)*(A129-m)^2/2/s^2)","v":5.8943092650095347E-6}]
[104,3.8535213016741558E-6]
[105,2.4942481824062356E-6]
[106,1.5983747857354024E-6]
[107,1.0140856348295105E-6]
[108,6.3698278690493847E-7]
[109,3.9613007640162364E-7]
[110,2.4389617759450147E-7]
[111,1.4867201426238216E-7]
[112,8.9724389517316053E-8]
[113,5.3610376088354757E-8]
[114,3.1713505560788678E-8]
[115,1.8573626289790073E-8]
[116,1.0769764590959731E-8]
[117,6.1826231112855647E-9]
[118,3.5139565788768205E-9]
[119,1.9773204757102215E-9]
[120,1.1015768276993998E-9]
[121,6.0758854158642579E-10]
[122,3.3178856447966453E-10]
[123,1.7937846655367904E-10]
[124,9.6014374253068158E-11]
[125,5.088142430530537E-11]

{"sheet":"Sheet3","index":2,"n_rows":0,"n_cols":0,"rows_kept":0,"cut":false,"hidden":false,"merged":[]}

{"sheet":"Sheet4","index":3,"n_rows":0,"n_cols":0,"rows_kept":0,"cut":false,"hidden":false,"merged":[]}